Cogmind - Beta 11.1 @@@ ROGUE MODE // 2022.07.26 @ 05:06:48 Player: ktur Result: Escaped! Performance ------------- Evolutions (9) 4500 Regions Visited (14) 2800 Robots Destroyed (120) 600 Value Destroyed (2663) 2663 Prototype IDs (22) 440 Alien Tech Used (0) 0 Bonus (26424) 26424 TOTAL SCORE: 37427 Bonus ------- Gauntlet 7344 Scavenger 9000 Follower Combat Kills 80 Win 3000 Challenge Win 7000 Cogmind --------- Core Integrity 594/1600 Matter 155/300 Energy 98/100 System Corruption 9% Temperature Hot (243) Movement Core (50) Location To Epsilon Eridani Parts ------- > --- POWER (2) -------- (None) > --- PROPULSION (10) -- (None) > --- UTILITY (11) ----- Experimental Signal Interpreter Experimental Terrain Scan Processor Advanced Hacking Suite Advanced Hacking Suite > --- WEAPON (2) ------- (None) > --- INVENTORY (5) ---- Stasis Canceller Improved Cloaking Device Improved Cloaking Device Authchip [Device] Enhanced Nova Cannon Peak State ------------ > --- POWER ------------ Light Quantum Reactor > --- PROPULSION ------- Improved VTOL Module Improved VTOL Module Improved VTOL Module Improved VTOL Module Improved Cesium-ion Thruster Cooled Nuclear Pulse Thruster Cooled Nuclear Pulse Thruster Cooled Nuclear Pulse Thruster Field Propulsion Array > --- UTILITY ---------- Advanced Coolant Injector Medium Storage Unit Advanced Sensor Array Experimental Signal Interpreter Long-range Terrain Scanner Experimental Terrain Scan Processor Hacking Suite Hacking Suite Improved Hacking Suite Advanced Hacking Suite Advanced Hacking Suite > --- WEAPON ----------- Enhanced Nova Cannon > --- INVENTORY -------- Stasis Canceller Advanced Transmission Jammer Advanced ECM Suite Improved Cloaking Device Improved Cloaking Device Graphene Brace Authchip [Device] Mini Grenade Launcher [Rating: 137] Favorites ----------- Power Improved Ion Engine Engine Improved Ion Engine Power Core Light Nuclear Core Reactor Light Antimatter Reactor Propulsion Light Treads Treads Light Treads Wheel Wheel Flight Unit Improved VTOL Module Utility Hacking Suite Device Advanced Sensor Array Storage High-capacity Storage Unit Processor Targeting Computer Hackware Hacking Suite Protection Hardened Light Armor Plating Weapon Improved Assault Rifle Energy Gun EM Pulse Gun Energy Cannon Enhanced Nova Cannon Ballistic Gun Improved Assault Rifle Launcher Grenade Launcher Impact Weapon Hammer Slashing Weapon Greatsword Build | -11 -10 -9 -8 -7 -7 -7 -6 -5 -5 -5 -4 -3 -2 -1 ------- Run | Scr Mat Mat Mat Fac Was Fac Fac Fac Was Fac Fac Res Res Acc Slots Evolved 18 | . . 2 2 2 . . 2 2 . . 2 2 2 2 Power 1 | . . . . . . . . . . . 1 . . . Propulsion 8 | . . 1 1 1 . . . . . . 1 . 2 2 Utility 9 | . . 1 1 1 . . 2 2 . . . 2 . . Weapon . | . . . . . . . . . . . . . . . Parts Attached 156 | 6 12 24 22 12 1 5 3 5 . 11 21 13 15 6 Power 16 | 1 1 3 2 1 . . . . . 2 3 1 2 . Engine 8 | 1 1 3 2 . . . . . . . 1 . . . Core 5 | . . . . 1 . . . . . 2 1 1 . . Reactor 3 | . . . . . . . . . . . 1 . 2 . Propulsion 60 | 2 1 12 11 5 . . 1 . . 3 8 6 10 1 Treads 24 | 2 1 11 10 . . . . . . . . . . . Leg . | . . . . . . . . . . . . . . . Wheel 1 | . . 1 . . . . . . . . . . . . Hover . | . . . . . . . . . . . . . . . Flight 35 | . . . 1 5 . . 1 . . 3 8 6 10 1 Utility 51 | 1 3 2 5 5 . 3 2 5 . 6 10 6 2 1 Device 18 | . . . . 1 . 3 . . . 3 5 5 1 . Storage 4 | 1 2 . . 1 . . . . . . . . . . Processor 6 | . 1 . 3 . . . . . . . 1 1 . . Hackware 19 | . . . . 3 . . 2 5 . 3 4 . 1 1 Protection 4 | . . 2 2 . . . . . . . . . . . Artifact . | . . . . . . . . . . . . . . . Weapon 29 | 2 7 7 4 1 1 2 . . . . . . 1 4 Energy Gun 2 | 2 . . . . . . . . . . . . . . Energy Cannon 5 | . . . . . . . . . . . . . 1 4 Ballistic Gun 16 | . 5 7 4 . . . . . . . . . . . Ballistic Cannon . | . . . . . . . . . . . . . . . Launcher 2 | . 1 . . . 1 . . . . . . . . . Special Weapon . | . . . . . . . . . . . . . . . Impact Weapon 1 | . 1 . . . . . . . . . . . . . Slashing Weapon 3 | . . . . 1 . 2 . . . . . . . . Piercing Weapon . | . . . . . . . . . . . . . . . Special Melee Weapon . | . . . . . . . . . . . . . . . Unidentified Prototypes 4 | . . 1 2 . 1 . . . . . . . . . Corrupted Parts 1 | . . . . . . . . . . 1 . . . . System Corruption 7 | . . . . . . . . . . 7 . . . . Parts Lost 36 | . 2 3 5 . 1 . . . . 3 1 5 1 15 Power 6 | . . 1 1 . . . . . . 1 . 1 1 1 Propulsion 13 | . . 2 . . . . . . . . . 2 . 9 Utility 11 | . . . 1 . 1 . . . . 2 1 1 . 5 Weapon 6 | . 2 . 3 . . . . . . . . 1 . . Highest Loss Streak 11 | . 2 2 1 . 1 . . . . 2 1 3 1 11 To Critical Strikes . | . . . . . . . . . . . . . . . Average Slot Usage (%) 92 | . 96 98 99 87 85 89 90 86 94 91 88 85 82 50 Engine 6 | . 14 10 8 1 . . . . . . 2 . . . Core 1 | . . . . 6 7 7 6 5 5 5 4 1 . . Treads 18 | . 28 31 35 . . . . . . . . . . . Flight 13 | . . . . 33 38 38 33 29 29 29 31 26 33 19 Device 3 | . . . . 6 1 4 6 5 5 5 10 15 13 5 Storage 8 | . 14 11 9 7 7 7 6 5 5 5 5 4 4 1 Processor 10 | . 11 11 17 7 7 7 6 5 5 5 5 9 8 8 Hackware 9 | . . . . 14 15 15 24 27 35 32 21 19 17 14 Protection 4 | . . 10 9 . . . . . . . . . . . Energy Gun 1 | . 12 . . . . . . . . . . . . . Ballistic Gun 10 | . 14 21 17 . . . . . . . . . . . Slashing Weapon 2 | . . . . 6 7 6 6 5 5 5 5 3 . . Naked Turns . | . . . . . . . . . . . . . . . Heaviest Build 58 | 14 51 58 58 19 19 21 21 21 21 22 35 37 42 42 Greatest Support 80 | 40 40 60 80 25 25 25 26 26 26 26 47 49 53 44 Greatest Overweight (x) 5 | . 1 5 . . . . . . . . 1 1 1 1 Average Overweight (x) . | . . . . . . . . . . . . . . . Largest Inventory Capacity 20 | 8 20 20 20 20 10 10 10 10 10 10 10 10 10 10 Average Capacity 14 | 7 14 20 20 10 10 10 10 10 10 10 10 10 10 7 Most Carried 20 | 6 20 20 20 20 10 10 10 10 10 10 10 10 9 9 Average Carried 14 | 3 13 19 19 9 10 9 9 9 9 9 9 8 8 6 Final Capacity 20 | 8 20 20 20 10 10 10 10 10 10 10 10 10 10 5 Final Carried 20 | 6 20 20 20 10 10 10 10 9 10 8 10 8 9 5 Class Distribution -------------------- 41% | Scavenger-Mutant 26% | Hacker-Sprinter 14% | Mutant 8% | Wizard-Sprinter 3% | Hacker-Scout Dominant Class ---------------- Mutant | -10/Materials Scavenger-Mutant | -9/Materials Scavenger-Mutant | -8/Materials Hacker-Sprinter | -7/Factory Hacker-Sprinter | -7/Waste Hacker-Sprinter | -7/Factory Hacker-Sprinter | -6/Factory Hacker-Sprinter | -5/Factory Wizard-Sprinter | -5/Waste Wizard-Sprinter | -5/Factory Hacker-Sprinter | -4/Factory Machinist-Scout | -3/Research Hacker-Scout | -2/Research Hacker-Sprinter | -1/Access Resources | -11 -10 -9 -8 -7 -7 -7 -6 -5 -5 -5 -4 -3 -2 -1 ----------- Run | Scr Mat Mat Mat Fac Was Fac Fac Fac Was Fac Fac Res Res Acc Matter Collected 2961 | 222 211 986 798 161 15 57 36 31 . 139 92 208 . 5 Remotely . | . . . . . . . . . . . . . . . Salvage Created 4966 | . 561 1484 1501 137 . 145 319 51 . 450 138 180 . . Parts 274 | . 40 102 79 7 . 8 3 5 . 16 10 4 . . Haulers Intercepted 22 | . 2 6 5 1 . 3 2 . . 1 1 1 . . Recyclers Shooed 3 | . 1 1 1 . . . . . . . . . . . Parts Field Recycled . | . . . . . . . . . . . . . . . Retrieved Matter . | . . . . . . . . . . . . . . . Parts Self-Destructed . | . . . . . . . . . . . . . . . Prevented . | . . . . . . . . . . . . . . . Kills | -11 -10 -9 -8 -7 -7 -7 -6 -5 -5 -5 -4 -3 -2 -1 ------- Run | Scr Mat Mat Mat Fac Was Fac Fac Fac Was Fac Fac Res Res Acc Combat Hostiles Destroyed 66 | . 15 27 24 . . . . . . . . . . . Guns 60 | . 9 27 24 . . . . . . . . . . . AOE 4 | . 4 . . . . . . . . . . . . . Classes Destroyed 12 | . 4 6 2 . . . . . . . . . . . Worker 6 | . . 4 2 . . . . . . . . . . . Builder 2 | . 1 . . . . . . 1 . . . . . . Tunneler 2 | . . 1 1 . . . . . . . . . . . Hauler 22 | . 2 6 5 1 . 3 2 . . 1 1 1 . . Recycler 9 | . . 3 1 1 . . 1 . . 3 . . . . Operator 5 | . . 4 . . . . . . . . 1 . . . Watcher 8 | . . 3 1 . . . . 1 . . 1 2 . . Swarmer 27 | . 5 15 7 . . . . . . . . . . . Grunt 25 | . 10 5 10 . . . . . . . . . . . Brawler 1 | . . . 1 . . . . . . . . . . . Duelist 1 | . . . 1 . . . . . . . . . . . Sentry 12 | . . 7 5 . . . . . . . . . . . Best Kill Streak 13 | . 13 4 8 1 . 1 1 1 . 1 1 1 . . Combat Bots Only 8 | . 8 4 8 . . . . . . . . . . . Max Kills in Single Turn 2 | . 2 2 2 1 . 1 1 1 . 1 1 1 . . Gunslinging 1 | . . 1 . . . . . . . . . . . . Exploded 2 | . 2 . . . . . . . . . . . . . Melee . | . . . . . . . . . . . . . . . Uniques/NPCs Destroyed . | . . . . . . . . . . . . . . . Combat | -11 -10 -9 -8 -7 -7 -7 -6 -5 -5 -5 -4 -3 -2 -1 -------- Run | Scr Mat Mat Mat Fac Was Fac Fac Fac Was Fac Fac Res Res Acc Damage Taken 5875 | . 646 1089 1409 38 32 27 . . . 158 41 420 260 1755 Core 1868 | . 190 185 150 10 26 15 . . . 48 . 114 124 1006 Absorbed by Shields 15 | . . . . . . . . . . . . 15 . . Regen/Repaired (Parts) 299 | . . 94 . . . 89 . . . . . 116 . . Core Remaining (%) 77 | 100 24 53 72 . . 92 100 . . 95 100 91 91 37 Volleys Fired 289 | . 55 126 99 . . . . . . . . . 1 8 Largest 2 | . 2 2 2 . . . . . . . . . 1 1 Hottest 120 | . 80 46 50 . . . . . . . . . 120 120 Shots Fired 550 | . 94 252 195 . . . . . . . . . 1 8 Gun 538 | . 91 252 195 . . . . . . . . . . . Cannon 9 | . . . . . . . . . . . . . 1 8 Launcher 3 | . 3 . . . . . . . . . . . . . Special . | . . . . . . . . . . . . . . . Kinetic 518 | . 71 252 195 . . . . . . . . . . . Thermal 9 | . . . . . . . . . . . . . 1 8 Explosive 3 | . 3 . . . . . . . . . . . . . Electromagnetic 20 | . 20 . . . . . . . . . . . . . Robot Hit Streak 28 | . 13 15 28 . . . . . . . . . . . Robot Miss Streak 4 | . 3 3 4 . . . . . . . . . . . Penetration Max . | . . . . . . . . . . . . . . . Secondary Targets 10 | . 2 4 4 . . . . . . . . . . . Max Gunslinging Chain 1 | . 1 1 1 . . . . . . . . . . . Shots Hit Robots 446 | . 67 187 149 2 . 6 13 3 . 5 5 9 . . Core Hits 162 | . 26 59 60 2 . 3 3 1 . 2 3 3 . . Critical Kills . | . . . . . . . . . . . . . . . Critical Parts Destroyed 1 | . . 1 . . . . . . . . . . . . Critical Strikes 3 | . . 1 . . . . 2 . . . . . . . Destroy 1 | . . 1 . . . . . . . . . . . . Sever 2 | . . . . . . . 2 . . . . . . . Melee Attacks 173 | . 2 . . 21 . 10 33 19 . 37 33 18 . . Impact 2 | . 2 . . . . . . . . . . . . . Slashing 171 | . . . . 21 . 10 33 19 . 37 33 18 . . Piercing . | . . . . . . . . . . . . . . . Sneak Attacks 16 | . 1 . . 2 . 3 2 1 . 5 1 1 . . Combat Hostiles . | . . . . . . . . . . . . . . . Follow-up Attacks . | . . . . . . . . . . . . . . . Damage Inflicted 9585 | . 929 3002 2406 130 . 370 889 260 . 596 387 616 . . Guns 5880 | . 604 2902 2374 . . . . . . . . . . . Cannons . | . . . . . . . . . . . . . . . Explosions 239 | . 239 . . . . . . . . . . . . . Melee 3324 | . 76 . . 130 . 370 889 260 . 596 387 616 . . Ramming 142 | . 10 100 32 . . . . . . . . . . . Kinetic 5687 | . 411 2902 2374 . . . . . . . . . . . Thermal . | . . . . . . . . . . . . . . . Explosive 239 | . 239 . . . . . . . . . . . . . Electromagnetic 193 | . 193 . . . . . . . . . . . . . Impact 76 | . 76 . . . . . . . . . . . . . Slashing 3248 | . . . . 130 . 370 889 260 . 596 387 616 . . Piercing . | . . . . . . . . . . . . . . . Highest Corruption 9 | . . . . . . 2 2 . . 7 . 4 1 9 Average Corruption 3 | . . . . . . 2 2 . . 7 . 3 1 7 Corruption Purged . | . . . . . . . . . . . . . . . Corruption Blocked . | . . . . . . . . . . . . . . . Effects 20 | . . . . . . 3 5 . . 1 . 2 1 8 Message Errors 4 | . . . . . . 1 . . . . . . . 3 Matter Fused 4 | . . . . . . 1 2 . . . . . . 1 Heat Flow Errors 5 | . . . . . . . 2 . . 1 . . 1 1 Energy Discharges 1 | . . . . . . . . . . . . . . 1 Parts Rejected 2 | . . . . . . . . . . . . 2 . . Data Loss (minor) 3 | . . . . . . 1 1 . . . . . . 1 Alerts 1 | . . . . . . . . . . . . . . 1 Overload Shots . | . . . . . . . . . . . . . . . Overflow Damage 504 | . 24 . . . . . 90 110 . 216 2 62 . . Projectiles . | . . . . . . . . . . . . . . . Explosions . | . . . . . . . . . . . . . . . Melee 504 | . 24 . . . . . 90 110 . 216 2 62 . . Knockbacks 2 | . . 1 1 . . . . . . . . . . . Impact 2 | . . 1 1 . . . . . . . . . . . Kinetic . | . . . . . . . . . . . . . . . Secondary . | . . . . . . . . . . . . . . . Self-Inflicted Damage . | . . . . . . . . . . . . . . . Shots . | . . . . . . . . . . . . . . . Rammed 15 | . 2 10 3 . . . . . . . . . . . Targets Rammed 20 | . 2 14 4 . . . . . . . . . . . Kicked . | . . . . . . . . . . . . . . . Crushed 5 | . . 4 1 . . . . . . . . . . . Highest Temperature 306 | . 306 24 169 4 3 8 206 . . 198 63 210 189 243 Average Temperature 37 | . 102 8 35 2 2 2 43 . . 144 20 45 85 54 Received Heat Transfer 1260 | . 258 294 630 12 . . . . . . 21 . 9 36 Effects 3 | . 3 . . . . . . . . . . . . . Interference 3 | . 3 . . . . . . . . . . . . . Siege Activations . | . . . . . . . . . . . . . . . Robots Corrupted 1 | . 1 . . . . . . . . . . . . . Combat Hostiles 1 | . 1 . . . . . . . . . . . . . Parts Fried 5 | . 5 . . . . . . . . . . . . . Impact Corruptions 2 | . 2 . . . . . . . . . . . . . Robots Melted . | . . . . . . . . . . . . . . . Combat Hostiles . | . . . . . . . . . . . . . . . Parts Melted . | . . . . . . . . . . . . . . . Heat Transferred . | . . . . . . . . . . . . . . . Parts Sabotaged . | . . . . . . . . . . . . . . . Parts Stolen . | . . . . . . . . . . . . . . . Parts Stripped . | . . . . . . . . . . . . . . . Power Chain Reactions . | . . . . . . . . . . . . . . . Missiles Intercepted . | . . . . . . . . . . . . . . . Alert | -11 -10 -9 -8 -7 -7 -7 -6 -5 -5 -5 -4 -3 -2 -1 ------- Run | Scr Mat Mat Mat Fac Was Fac Fac Fac Was Fac Fac Res Res Acc Peak Influence 945 | . 267 248 304 443 164 945 462 126 15 270 228 326 555 941 Initial 462 | . . 49 104 137 155 114 462 44 . 10 139 40 177 332 Average 165 | . 121 97 112 251 162 726 207 74 5 58 133 91 380 633 Maximum Alert Level 3 | . 1 1 1 2 . 3 2 . . 1 1 1 2 3 Low Security (%) 73 | 100 58 84 88 36 100 10 43 100 100 94 96 95 12 . Level 1 17 | . 41 15 11 51 . 2 47 . . 5 3 4 35 27 Level 2 4 | . . . . 11 . 22 8 . . . . . 51 28 Level 3 4 | . . . . . . 63 . . . . . . . 43 Level 4 . | . . . . . . . . . . . . . . . Level 5 . | . . . . . . . . . . . . . . . High Security . | . . . . . . . . . . . . . . . Max Security . | . . . . . . . . . . . . . . . Squads Dispatched 39 | . 3 4 1 4 . 4 5 2 . 6 2 3 3 2 Investigation 24 | . 3 1 1 4 . 2 5 1 . 1 2 1 3 . Extermination 3 | . . . . . . 1 . . . 1 . 1 . . Reinforcement 10 | . . 3 . . . 1 . 1 . 2 . 1 . 2 Assault . | . . . . . . . . . . . . . . . Garrison 2 | . . . . . . . . . . 2 . . . . Intercept . | . . . . . . . . . . . . . . . Searches Triggered 1 | . . . . . . . . . . . . . . 1 Construction Impeded . | . . . . . . . . . . . . . . . Haulers Reinforced 1 | . . . . . . 1 . . . . . . . . Active Scanning Responses . | . . . . . . . . . . . . . . . Cargo Convoy Interrupts . | . . . . . . . . . . . . . . . Stealth | -11 -10 -9 -8 -7 -7 -7 -6 -5 -5 -5 -4 -3 -2 -1 --------- Run | Scr Mat Mat Mat Fac Was Fac Fac Fac Was Fac Fac Res Res Acc Distress Signals 16 | . 1 1 4 2 . 2 1 . . . 1 2 . 2 Communications Jammed . | . . . . . . . . . . . . . . . Distress Signals . | . . . . . . . . . . . . . . . Times Spotted 268 | . 24 45 33 8 1 6 9 5 5 19 14 23 22 54 Peak Tracking Total 20 | . 4 4 7 4 1 4 4 2 5 8 5 16 12 20 Tactical Retreats 41 | . 1 1 2 5 . 3 2 1 . 5 3 3 4 11 Traps | -11 -10 -9 -8 -7 -7 -7 -6 -5 -5 -5 -4 -3 -2 -1 ------- Run | Scr Mat Mat Mat Fac Was Fac Fac Fac Was Fac Fac Res Res Acc Traps Triggered 30 | . 5 1 2 3 . 1 2 1 . 5 1 2 4 3 Indirectly . | . . . . . . . . . . . . . . . Trap Hack Attempts . | . . . . . . . . . . . . . . . Triggered . | . . . . . . . . . . . . . . . Disarmed . | . . . . . . . . . . . . . . . Reprogrammed 4 | . . . . . . . . . . 4 . . . . Reused . | . . . . . . . . . . . . . . . Traps Extracted . | . . . . . . . . . . . . . . . Installed . | . . . . . . . . . . . . . . . Triggered 1 | . 1 . . . . . . . . . . . . . Machines | -11 -10 -9 -8 -7 -7 -7 -6 -5 -5 -5 -4 -3 -2 -1 ---------- Run | Scr Mat Mat Mat Fac Was Fac Fac Fac Was Fac Fac Res Res Acc Machines Disabled 25 | . 1 1 . . . 21 . . . . 1 . . 1 Max in Single Turn 1 | . 1 1 . . . . . . . . 1 . . 1 Garrison Access 5 | . . . 1 1 . 1 1 . . . 1 . . . Energy Cycler 1 | . . . . . . . . . . . . . . 1 Machines Sabotaged . | . . . . . . . . . . . . . . . Garrisons Compromised . | . . . . . . . . . . . . . . . Overloaded Fab Kills . | . . . . . . . . . . . . . . . Hacking | -11 -10 -9 -8 -7 -7 -7 -6 -5 -5 -5 -4 -3 -2 -1 --------- Run | Scr Mat Mat Mat Fac Was Fac Fac Fac Was Fac Fac Res Res Acc Machines Accessed 75 | . 3 10 5 8 . 6 12 7 . 4 7 4 6 3 Terminals 48 | . 3 7 3 3 . 2 7 6 . 2 4 2 6 3 Fabricators 15 | . . . . 3 . 2 4 1 . 2 2 1 . . Repair Stations 5 | . . 2 . 1 . 1 . . . . . 1 . . Recycling Units . | . . . . . . . . . . . . . . . Scanalyzers 2 | . . 1 1 . . . . . . . . . . . Garrison Access 5 | . . . 1 1 . 1 1 . . . 1 . . . Total Hacks 258 | . 13 43 14 20 . 17 23 35 . 27 33 12 16 5 Successful 179 | . 7 31 8 14 . 11 15 31 . 23 22 10 4 3 Failed 78 | . 6 12 6 6 . 6 8 4 . 4 10 2 12 2 Catastrophic 12 | . . 4 . . . . 3 1 . . 1 . 2 1 Database Lockouts 1 | . . . . . . . . . . . 1 . . . Manual 148 | . 12 18 6 8 . 6 14 23 . 19 17 7 16 2 Terminals 165 | . 13 29 11 7 . 5 14 27 . 18 14 6 16 5 Fabricators 58 | . . . . 8 . 7 8 8 . 9 16 2 . . Repair Stations 17 | . . 7 . 3 . 3 . . . . . 4 . . Recycling Units . | . . . . . . . . . . . . . . . Scanalyzers 9 | . . 7 2 . . . . . . . . . . . Garrison Access 9 | . . . 1 2 . 2 1 . . . 3 . . . Terminal Hacks 72 | . 4 14 5 2 . 2 8 12 . 12 7 2 2 2 Part Schematic 9 | . . . . . . 1 1 3 . 2 2 . . . Robot Analysis 12 | . 4 3 . . . . . . . 4 1 . . . Prototype ID Bank 7 | . . 3 1 . . . 1 2 . . . . . . Level Access Points 6 | . . . . . . . 1 . . 1 1 1 1 1 Emergency Access Points 1 | . . . . . . . . . . . . . . 1 Machine Index 2 | . . . . . . . 1 . . 1 . . . . Terminal Index 2 | . . . . 1 . . . 1 . . . . . . Fabricator Index 2 | . . . . . . . . 1 . . 1 . . . Repair Station Index 1 | . . . . 1 . . . . . . . . . . Alert Level 11 | . . 4 1 . . 1 1 2 . 1 . . 1 . Unreport Threat 9 | . . 2 1 . . . 3 1 . . 2 . . . Locate Traps 4 | . . 2 1 . . . . . . 1 . . . . Reprogram Traps 1 | . . . . . . . . . . 1 . . . . Recall Investigation 1 | . . . 1 . . . . . . . . . . . Recall Extermination 1 | . . . . . . . . . . 1 . . . . Zone Layout 3 | . . . . . . . . 2 . . . 1 . . Fabricator Hacks 35 | . . . . 4 . 4 2 7 . 6 11 1 . . Network Status 2 | . . . . 1 . 1 . . . . . . . . Load Schematic 21 | . . . . 3 . 2 2 4 . 3 6 1 . . Build 12 | . . . . . . 1 . 3 . 3 5 . . . Repair Station Hacks 14 | . . 5 . 3 . 2 . . . . . 4 . . Scan Component 8 | . . 3 . 2 . 1 . . . . . 2 . . Repair 6 | . . 2 . 1 . 1 . . . . . 2 . . Recycling Unit Hacks . | . . . . . . . . . . . . . . . Scanalyzer 9 | . . 7 2 . . . . . . . . . . . Insert Component 4 | . . 3 1 . . . . . . . . . . . Analyze 5 | . . 4 1 . . . . . . . . . . . Garrison Access Hacks 5 | . . . 1 1 . 1 1 . . . 1 . . . Seal Access 5 | . . . 1 1 . 1 1 . . . 1 . . . Unauthorized Hacks 44 | . 3 5 . 4 . 2 4 12 . 5 3 3 2 1 Terminals 28 | . 3 5 . 1 . . . 11 . 3 . 2 2 1 Track 3 | . . . . . . . . 3 . . . . . . Assimilate 6 | . . . . . . . . 1 . . . 2 2 1 Botnet 12 | . 1 3 . 1 . . . 5 . 2 . . . . Detonate 1 | . . . . . . . . 1 . . . . . . Disrupt 1 | . . 1 . . . . . . . . . . . . Operators 5 | . 2 1 . . . . . 1 . 1 . . . . Fabricators 16 | . . . . 3 . 2 4 1 . 2 3 1 . . Prioritize 5 | . . . . . . 1 . . . 2 2 . . . Recompile 11 | . . . . 3 . 1 4 1 . . 1 1 . . Repair Stations . | . . . . . . . . . . . . . . . Recycling Units . | . . . . . . . . . . . . . . . Scanalyzers . | . . . . . . . . . . . . . . . Garrison Access . | . . . . . . . . . . . . . . . Data Cores Recovered 2 | . . 1 . . . . . . . . 1 . . . Used 1 | . . . . . . . . . . . 1 . . . Hacking Detections 58 | . 3 9 3 5 . 5 8 4 . 3 5 4 6 3 Full Trace Events 9 | . . 1 . 1 . 1 1 . . 1 1 . 3 . Feedback Events 3 | . . . . . . . . . . 2 . . 1 . Corruption 1 | . . . . . . . . . . . . . 1 . Hackware Fried 2 | . . . . . . . . . . 2 . . . . Feedback Blocked . | . . . . . . . . . . . . . . . Robot Schematics Acquired . | . . . . . . . . . . . . . . . Robots Built . | . . . . . . . . . . . . . . . Authchips . | . . . . . . . . . . . . . . . Time . | . . . . . . . . . . . . . . . Total Robot Build Rating . | . . . . . . . . . . . . . . . Part Schematics Acquired 13 | . . 3 1 . . 1 1 3 . 2 2 . . . Parts Built 12 | . . . . . . 1 . 3 . 3 5 . . . Authchips 10 | . . . . . . . . 3 . 3 4 . . . Time 864 | . . . . . . 23 . 105 . 311 425 . . . Total Part Build Rating 75 | . . . . . . 5 . 18 . 19 33 . . . Parts Repaired 6 | . . 2 . 1 . 1 . . . . . 2 . . Time 275 | . . 83 . 38 . 22 . . . . . 132 . . Parts Recycled . | . . . . . . . . . . . . . . . Recycled Matter . | . . . . . . . . . . . . . . . Retrieved Matter . | . . . . . . . . . . . . . . . Retrieved Components . | . . . . . . . . . . . . . . . Parts Scanalyzed 4 | . . 3 1 . . . . . . . . . . . Part Schematics Acquired 4 | . . 3 1 . . . . . . . . . . . Parts Damaged 1 | . . . 1 . . . . . . . . . . . Bothacking | -11 -10 -9 -8 -7 -7 -7 -6 -5 -5 -5 -4 -3 -2 -1 ------------ Run | Scr Mat Mat Mat Fac Was Fac Fac Fac Was Fac Fac Res Res Acc Used RIF Installer . | . . . . . . . . . . . . . . . Robots Hacked . | . . . . . . . . . . . . . . . Non-combat . | . . . . . . . . . . . . . . . Combat . | . . . . . . . . . . . . . . . Robot Hacks Applied . | . . . . . . . . . . . . . . . Relay Couplers Released . | . . . . . . . . . . . . . . . Fabnet Peak Effective % . | . . . . . . . . . . . . . . . Robots Rewired . | . . . . . . . . . . . . . . . Allies Hacked . | . . . . . . . . . . . . . . . Hacks Repelled . | . . . . . . . . . . . . . . . Allies | -11 -10 -9 -8 -7 -7 -7 -6 -5 -5 -5 -4 -3 -2 -1 -------- Run | Scr Mat Mat Mat Fac Was Fac Fac Fac Was Fac Fac Res Res Acc Total Allies 26 | . . . . . 20 . . 1 . . . 2 2 1 Largest Group 20 | . . . . . 20 15 . 1 . . . 2 1 1 Highest-Rated Group 549 | . . . . . 549 442 . 10 . . . 55 45 45 Highest-Rated Ally 45 | . . . . . 35 35 . 10 . . . 45 45 45 Total Orders . | . . . . . . . . . . . . . . . Ally Attacks 68 | . . . . . 15 53 . . . . . . . . Total Damage 4145 | . . . . . 1039 3106 . . . . . . . . Kills 31 | . . . . . 6 25 . . . . . . . . Allies Corrupted 2 | . . . . . . 2 . . . . . . . . Allies Melted . | . . . . . . . . . . . . . . . Intel | -11 -10 -9 -8 -7 -7 -7 -6 -5 -5 -5 -4 -3 -2 -1 ------- Run | Scr Mat Mat Mat Fac Was Fac Fac Fac Was Fac Fac Res Res Acc Robot Analysis Total 12 | . 4 3 . . . . . . . 4 1 . . . Derelict Logs Recovered . | . . . . . . . . . . . . . . . Drone Launches . | . . . . . . . . . . . . . . . Drone Recoveries . | . . . . . . . . . . . . . . . Exploration | -11 -10 -9 -8 -7 -7 -7 -6 -5 -5 -5 -4 -3 -2 -1 ------------- Run | Scr Mat Mat Mat Fac Was Fac Fac Fac Was Fac Fac Res Res Acc Turns Passed 8944 | 97 815 2576 1555 355 87 386 438 405 50 641 615 352 241 331 Spaces Moved 10239 | 54 364 1183 737 828 104 1040 941 670 168 1132 659 530 941 888 Core 61 | 3 . . . . . . . . . . . . . 58 Treads 2280 | 51 364 1128 737 . . . . . . . . . . . Legs . | . . . . . . . . . . . . . . . Wheels 55 | . . 55 . . . . . . . . . . . . Hover . | . . . . . . . . . . . . . . . Flight 7843 | . . . . 828 104 1040 941 670 168 1132 659 530 941 830 Fastest Speed 6 | 50 160 155 160 23 23 23 23 23 23 23 6 6 7 20 Average Speed 55 | 153 169 163 160 24 23 23 23 23 23 23 21 20 20 29 Slowest Speed 240 | 160 240 240 162 26 23 23 23 23 23 26 89 92 97 92 Overloaded Moves 40 | . . . . . . . . . . . 5 23 12 . Propulsion Burnouts . | . . . . . . . . . . . . . . . Robots Hopped 65 | . . . . 2 . 9 6 . 1 13 1 4 7 22 Cave-ins Triggered . | . . . . . . . . . . . . . . . Exploration Rate (%) 42 | 4 76 89 60 31 77 35 32 20 82 26 25 21 28 27 Regions Visited 14 Branch Regions . Pre-discovered Areas . | . . . . . . . . . . . . . . . Known Exits Taken 7 | . . . 1 . . 1 1 . . 1 1 1 1 . Unknown Exits Taken 3 | 1 1 1 . . . . . . . . . . . . Scrap Searched . | . . . . . . . . . . . . . . . Spaces Dug 116 | . . . . 19 . 2 17 15 . 28 25 5 1 4 Terrain Destroyed 151 | . 13 . . 19 . 2 17 15 . 28 25 5 1 26 Melee 111 | . . . . 19 . 2 17 15 . 28 25 5 . . Projectile 7 | . . . . . . . . . . . . . 1 6 AOE 33 | . 13 . . . . . . . . . . . . 20 Terrain Rammed . | . . . . . . . . . . . . . . . Walls Destroyed . | . . . . . . . . . . . . . . . Machines Disabled . | . . . . . . . . . . . . . . . Actions | -11 -10 -9 -8 -7 -7 -7 -6 -5 -5 -5 -4 -3 -2 -1 --------- Run | Scr Mat Mat Mat Fac Was Fac Fac Fac Was Fac Fac Res Res Acc Total 12626 | 66 483 1583 950 952 166 1160 1091 881 177 1423 1064 731 970 929 Wait 1561 | . 13 182 48 32 61 102 111 185 10 248 338 169 18 44 Move 10099 | 53 362 1182 736 824 103 1021 928 670 165 1107 656 521 926 845 Hop 61 | . . . . 2 . 9 6 . 1 11 1 4 7 20 Pick Up 108 | 7 24 21 15 10 . 6 6 2 1 5 7 3 1 . Fast Attach 60 | 5 3 5 7 1 1 3 . 2 . 5 8 5 13 2 Attach 50 | 1 2 4 5 9 . . 3 3 . 4 6 7 2 4 Detach 12 | . 1 . . . . . . . . . 3 2 2 4 Swap 47 | . 7 15 11 2 . 2 . . . 2 7 1 . . Drop 112 | . 12 34 25 18 1 7 4 . . 4 5 . . 2 Fire 289 | . 55 126 99 . . . . . . . . . 1 8 Melee 173 | . 2 . . 21 . 10 33 19 . 37 33 18 . . Ram . | . . . . . . . . . . . . . . . Kick . | . . . . . . . . . . . . . . . Crush 20 | . 2 14 4 . . . . . . . . . . . Escape Stasis 34 | . . . . 33 . . . . . . . 1 . . Rewire . | . . . . . . . . . . . . . . . Trap . | . . . . . . . . . . . . . . . Miscellaneous . | . . . . . . . . . . . . . . . Route ------- -11/Scrapyard -10/Materials -9/Materials -8/Materials -7/Factory -7/Waste -7/Factory -6/Factory -5/Factory -5/Waste -5/Factory -4/Factory -3/Research -2/Research -1/Access To Epsilon Eridani History --------- Turn | Location | Event 4 | -11/Scrapyard | Discovered new exit (range 15) 98 | -11/Scrapyard | Entered Materials 234 | -10/Materials | Discovered new exit (range 16) 311 | -10/Materials | Build established: Mutant 555 | -10/Materials | Destroyed 8 combat bots 558 | -10/Materials | Core integrity fell below 50% 579 | -10/Materials | Discovered new exit (range 16) 877 | -10/Materials | Discovered new exit (range 15) 913 | -10/Materials | Entered another Materials area 913 | -9/Materials | Evolved 2 slots: Propulsion x1, Utility x1 1651 | -9/Materials | Build established: Scavenger-Mutant 1940 | -9/Materials | Discovered new exit (range 12) 2309 | -9/Materials | Discovered new exit (range 13) 2489 | -9/Materials | Discovered new exit (range 8) 3021 | -9/Materials | Discovered new exit (range 15) 3279 | -9/Materials | Repaired VTOL Module 3390 | -9/Materials | Discovered new exit (range 13) 3460 | -9/Materials | Repaired Imp. Assault Rifle 3489 | -9/Materials | Entered another Materials area 3489 | -8/Materials | Evolved 2 slots: Propulsion x1, Utility x1 3868 | -8/Materials | Discovered new exit (range 8) 4792 | -8/Materials | Destroyed 8 combat bots 4962 | -8/Materials | Discovered new exit (range 9) 5042 | -8/Materials | Identified exit to Factory 5044 | -8/Materials | Entered Factory 5044 | -7/Factory | Evolved 2 slots: Propulsion x1, Utility x1 5108 | -7/Factory | Discovered new exit (range 15) 5235 | -7/Factory | Repaired Broken Imp. VTOL Module 5259 | -7/Factory | Discovered new exit (range 12) 5352 | -7/Factory | Build established: Hacker-Sprinter 5399 | -7/Factory | Manually triggered Chute Trap 5399 | -7/Factory | Sucked down chute 5399 | -7/Factory | Entered Waste 5400 | -7/Waste | Joined by Warlord forces that had cleared the area 5410 | -7/Waste | A Compactor rumbled back to life 5410 | -7/Waste | Spotted C-40 Crusher 5423 | -7/Waste | Discovered new exit (range 10) 5425 | -7/Waste | Identified exit to Factory 5486 | -7/Waste | Entered Factory 5486 | -7/Factory | Accompanied by 15 allies 5607 | -7/Factory | Fabricated Adv. Sensor Array (x1) 5752 | -7/Factory | Discovered new exit (range 15) 5755 | -7/Factory | Identified exit to Factory 5827 | -7/Factory | Repaired Greatsword 5864 | -7/Factory | Discovered exit to Factory (range 16) 5872 | -7/Factory | Entered another Factory area 5872 | -6/Factory | Evolved 2 slots: Utility x2 6135 | -6/Factory | Discovered new exit (range 4) 6156 | -6/Factory | Identified exit to Factory 6310 | -6/Factory | Entered another Factory area 6310 | -5/Factory | Evolved 2 slots: Utility x2 6414 | -5/Factory | Spotted B-75 Beast 6473 | -5/Factory | Fabricated Adv. Hacking Suite (x1) 6510 | -5/Factory | Fabricated Adv. Hacking Suite (x1) 6548 | -5/Factory | Fabricated Adv. System Shield (x1) 6715 | -5/Factory | Manually triggered Chute Trap 6715 | -5/Factory | Sucked down chute 6715 | -5/Factory | Entered Waste 6729 | -5/Waste | Spotted C-40 Crusher 6731 | -5/Waste | Spotted C-40 Crusher 6740 | -5/Waste | Spotted C-40 Crusher 6745 | -5/Waste | Spotted C-40 Crusher 6747 | -5/Waste | Spotted C-40 Crusher 6747 | -5/Waste | Spotted C-40 Crusher 6761 | -5/Waste | Discovered new exit (range 14) 6764 | -5/Waste | Identified exit to Factory 6765 | -5/Waste | Entered Factory 6830 | -5/Factory | Identified exit to Factory 6843 | -5/Factory | Build established: Wizard-Sprinter 7004 | -5/Factory | Fabricated Cld. Nuclear Pulse Thruster? 7092 | -5/Factory | Fabricated Cld. Nuclear Pulse Thruster? 7214 | -5/Factory | Assembled infested ambush trap array 7255 | -5/Factory | Garrison activated, responded to threat 7271 | -5/Factory | Adv. Hacking Suite fried by hacking feedback 7271 | -5/Factory | Hacking Suite fried by hacking feedback 7307 | -5/Factory | Fabricated Lrn. Sensor Array? 7406 | -5/Factory | Entered another Factory area 7406 | -4/Factory | Evolved 2 slots: Power x1, Propulsion x1 7565 | -4/Factory | Fabricated Exp. Signal Interpreter (x1) 7588 | -4/Factory | Build established: Hacker-Sprinter 7652 | -4/Factory | Fabricated Cld. Nuclear Pulse Thruster (x1) 7739 | -4/Factory | Fabricated Cld. Nuclear Pulse Thruster? 7846 | -4/Factory | Fabricated Lrn. Terrain Scanner (x1) 7879 | -4/Factory | Fabricated Exp. Terrain Scan Processor (x1) 7887 | -4/Factory | Identified exit to Research 7926 | -4/Factory | Central database locked down 8021 | -4/Factory | Entered Research 8021 | -3/Research | Evolved 2 slots: Utility x2 8055 | -3/Research | Identified exit to Research 8120 | -3/Research | Repaired Adv. Coolant Injector 8191 | -3/Research | Repaired Imp. Cesium-ion Thruster 8317 | -3/Research | Lost 3 parts (1p1n1u) 8369 | -3/Research | Spotted B-86 Titan 8373 | -3/Research | Entered another Research area 8373 | -2/Research | Evolved 2 slots: Propulsion x2 8561 | -2/Research | Identified exit to Access 8614 | -2/Research | Entered Access 8614 | -1/Access | Evolved 2 slots: Propulsion x2 8706 | -1/Access | Energy Cycler disabled 8813 | -1/Access | Lost 11 parts (1p6n4u) 8848 | -1/Access | Spotted B-99 Colossus 8864 | -1/Access | Search patrols dispatched 8877 | -1/Access | Identified exit to Surface 8899 | -1/Access | Spotted B-99 Colossus 8912 | -1/Access | Core integrity fell below 50% 8945 | *** | Escaped! Last Messages --------------- 08908_ Drone sends a signal. 08908_ Director 10a reveals location of Alarm Trap. 08908_ Imp. VTOL Module destroyed. 08908_ Acquired 5 matter. 08911_ Hacking Suite destroyed. 08912_ System corrupted: Energy discharge (-20). 08919_ Slug penetrates Wall. 08919_ Penetrated by Slug. 08919_ Imp. VTOL Module destroyed. 08920_ Slug penetrates H-88 Terminator. 08920_ H-88 Terminator retrieves Drone. 08926_ Slug penetrates Wall. 08929_ MTOZ2CVMSB2JR8Z%S0D,G:| 08939_ ALERT: Suspicious intruders detected, dispatching Specialist reinforcements to area. 08943_ The Access Shell folds into the floor. 08944_ System corrupted: Heat flow error (+295). [Achievement: Unstoppable] [Achievement: This Only Looks Like Junk] Map ----- +----------------------------------------------------+ | # % # T"#???????????## " | | # ##### # """#????????????# """ | | ###/###???####### "" #????????????#] G | | #?????????# #????????????# """ | | #?????????# #????????????# " | | #?????????#########????????????# | | #??????????????????????????????# | | #??????????????????????????????# | | #??????????????????????????????+ ######## | | ###"#"#??????????????????????????????# #??????# | | ??# ###??????????????????????????????# #??????# | | ??# #????????????????????????????????# #??????# | | ??# #????????????????????????????????# #???? # | | ??# #????????????????????????????????# #?? # | | ###+######???????????????????????????# # # | | #???????????????????????????# + ! # | | #???????????????????????????# # # | | " #???????????????????????????# #?? # | | """ #???????????????????????????# #????### | | """ #???????????????????###?????# #??????# | | " #??????????########## ####### #??????# | | #??????????" #??????# | | #??????????" #??????# # | | ######+###??????????" #??????#+? | | ???? ???????????" #????????? | | ?? ?????????" "@ #?????? ?? | | ???????" "" #??????" ? | | ?????" #???? "" ? | | ########## ???" #????""""" | | ?????????? "??" """ """ ## """""" | | ??????????? "??" """T""" ## "" | | ????????????######??########## ####### ## "" | | ?????????????????????????????###?????# ## | | ?????????????????????????????????????# ## | | ?????????????????????????????????????# ## | | ?????????????????????????????????????# ## | | ?????????????????????????????????????+ ## | | ?????????????????????????????????????# ########## | | ?????????????????????????????????????# | | ?????????????????????????????????????# | | ?????????????????????????????????????# | | ?????????????????????????????????????# | | ?????????????????????????????????????# | | ?????????????????????????????????????# | | ??????????????????????????############ | | ??????????????????????? ########## | | ??????????????????????? #????????? | | ??????????????????????????############ #????????? | | ?????????????????????????????????????# #????????? | | ?????????????????????????????????????# #????????? | +----------------------------------------------------+ Best States ------------- Heat Dissipation 52 Coolant Potential 100 Energy Generation 41 Energy Capacity 325 Matter Stores 300 Matter Capacity 300 Sight Range 16 Robot Scan Range 18 Terrain Scan Range 24 Terrain Scan Density 1010 Power Amplification 20 Armor Coverage 150 Evasion (%) 66 Targeting Accuracy 8 Recoil Reduction 4 Salvage Targeting 1 Offensive Hacking 60 Defensive Hacking 14 Authchip Count 8 Item Schematics ----------------- VTOL Module | -9/Materials | Scanalyzed Hammer | -9/Materials | Scanalyzed Hacking Suite | -9/Materials | Scanalyzed Imp. VTOL Module | -8/Materials | Scanalyzed Adv. Sensor Array | -7/Factory | Hacked Adv. System Shield | -6/Factory | Hacked Adv. Hacking Suite | -5/Factory | Hacked Com. Mass Driver | -5/Factory | Hacked Cld. Nuclear Pulse Thruster | -5/Factory | Hacked Lrn. Sensor Array | -5/Factory | Hacked Lrn. Terrain Scanner | -5/Factory | Hacked Exp. Signal Interpreter | -4/Factory | Hacked Exp. Terrain Scan Processor | -4/Factory | Hacked Robot Schematics ------------------ None Fabricated ------------ Adv. Sensor Array | x1 | -7/Factory Adv. Hacking Suite | x1 | -5/Factory | Authchip Adv. Hacking Suite | x1 | -5/Factory | Authchip Adv. System Shield | x1 | -5/Factory | Authchip Cld. Nuclear Pulse Thruster | x1 | -5/Factory | Authchip Cld. Nuclear Pulse Thruster | x1 | -5/Factory | Authchip Lrn. Sensor Array | x1 | -5/Factory | Authchip Exp. Signal Interpreter | x1 | -4/Factory | Authchip Cld. Nuclear Pulse Thruster | x1 | -4/Factory | Authchip Cld. Nuclear Pulse Thruster | x1 | -4/Factory | Authchip Lrn. Terrain Scanner | x1 | -4/Factory | Authchip Exp. Terrain Scan Processor | x1 | -4/Factory Alien Tech Used ----------------- None Achievements -------------- This Only Looks Like Junk Unstoppable Challenges ------------ Gauntlet Scavenger Game ------ Seed ShadeMakeshiftWell Manual? 0 Play Time 01:30:37 Cumulative 562.9 hours Start 2022.07.26 @ 03:42:46 End 2022.07.26 @ 05:06:48 Sessions 1 Manual Loads 0 Difficulty Rogue Special Mode None Game No. 497 Rogue 497 Adventurer 0 Explorer 0 Win Type 0 Total 26 Types 14/2/6/2/0/0/1/1/0 Lore% 94 Gallery% 94 Achievement% 80 Wizard Run 0 Options --------- ASCII 0 Keyboard 0 Movement Arrows Keybinds 0 Fullscreen 1 Font 18/Smallcaps Map View 76x50 Tactical HUD 1 Map Filters NONE Filters NONE Steam 1 RUN: 22e318cb-9792-48b1-a440-c1374636ef8f